bitfinex/quotes_ETHUSD_20250924
["timestamp","ask_amount","ask_price","bid_price","bid_amount"]
[1758679950719,4.33309638,4185.2,4185.1,3.10952916]
[1758679951012,7.21389638,4185.2,4185.1,0.7201]
[1758679952675,7.21389638,4185.2,4185.1,3.10952916]
[1758679953417,3.22189638,4185.2,4185.1,3.10952916]
[1758679953613,7.21389638,4185.2,4185.1,3.10952916]
[1758679953978,7.21389638,4185.2,4185.1,0.7201]
[1758679954184,0.3747884,4185.6,4185.1,0.7201]
[1758679954185,0.3747884,4185.6,4185.5,2.38920081]
[1758679954386,2.021,4186.1,4186.0,2.38891543]
[1758679954616,2.068,4186.9,4186.3,2.38869738]
[1758679954919,3.0,4186.7,4186.5,2.38859216]
[1758679955217,7.15772822,4186.6,4186.3,0.02388744]
[1758679955418,7.024,4186.5,4186.4,2.38868717]
[1758679955799,7.024,4186.5,4186.4,2.84988717]
[1758679956019,7.024,4186.5,4186.4,3.08478717]
[1758679956229,0.11781181,4187.2,4186.8,2.3884587]
[1758679956230,3.11781181,4187.2,4186.8,2.3884587]
[1758679956449,3.0,4187.0,4186.9,0.6961]
[1758679956625,3.92479315,4187.0,4186.9,0.6961]
[1758679956830,3.92479315,4187.0,4186.9,0.2349]
[1758679957035,0.792,4186.9,4186.0,0.4612]
[1758679957207,0.792,4186.9,4184.7,0.71854996]
[1758679957208,5.64808078,4186.3,4185.8,2.62388835]
[1758679957542,4.15684228,4186.2,4185.9,0.2349]
[1758679957704,4.024,4186.2,4186.0,0.2349]
[1758679957902,4.024,4186.2,4186.0,0.4612]
[1758679958139,4.024,4186.2,4186.1,0.2349]
[1758679958324,4.15689722,4186.2,4186.1,0.6961]
[1758679958640,0.13289722,4186.2,4186.1,0.2349]
[1758679958841,4.024,4186.2,4186.1,0.6961]
[1758679959142,4.15689722,4186.2,4186.1,0.2349]
[1758679959303,3.0,4186.1,4185.9,0.2349]
[1758679959503,7.15594803,4186.0,4185.9,0.2349]
[1758679960301,3.0,4185.9,4185.6,0.2349]
[1758679960538,4.15494803,4185.8,4185.6,2.38912942]
[1758679960738,4.022,4185.8,4185.6,0.2349]
[1758679960905,4.022,4185.8,4185.7,0.2349]
[1758679961106,4.15499845,4185.8,4185.7,0.2349]
[1758679961530,7.15499845,4185.8,4185.7,0.2349]
[1758679961731,3.1192,4185.7,4185.1,0.024]
[1758679961908,4.15499845,4185.6,4185.2,2.834733]
[1758679962109,0.13299845,4185.5,4185.3,0.676]
[1758679962364,4.15499845,4185.4,4185.3,0.4454]
[1758679962712,4.15499845,4185.4,4185.3,2.83471498]
[1758679962914,4.15499845,4185.4,4185.3,0.676]
[1758679964344,4.15499845,4185.4,4185.1,0.024]
[1758679964345,0.1192,4185.3,4185.1,0.024]
[1758679964551,7.15399845,4185.2,4185.1,0.024]
[1758679966234,7.37595744,4185.2,4185.1,0.024]
[1758679969346,7.37595744,4185.2,4185.1,0.2546]
[1758679970557,7.37595744,4185.2,4185.1,17.14402916]
[1758679970733,7.37595744,4185.2,4185.1,14.7546]
[1758679971139,7.37595744,4185.2,4185.1,17.14402916]
[1758679971316,7.37595744,4185.2,4185.1,14.7546]
[1758679971526,7.37595744,4185.2,4185.1,14.524]
[1758679971722,7.37595744,4185.2,4185.1,14.7546]
[1758679972256,4.37595744,4185.2,4185.1,14.7546]
[1758679972859,4.37295744,4185.2,4185.1,14.7546]
[1758679974463,4.37295744,4185.2,4185.1,14.524]
[1758679974464,9.25117318,4185.2,4185.1,14.524]
[1758679974771,9.99095326,4185.2,4185.1,0.024]
[1758679975349,9.99119801,4185.2,4185.1,0.024]
[1758679976338,10.62900184,4185.2,4185.1,0.024]
[1758679978826,12.38057008,4185.2,4185.1,0.024]
[1758679980252,13.23247365,4185.2,4185.1,0.024]
[1758679980454,10.84310158,4185.2,4185.1,0.024]
[1758679980669,9.99119801,4185.2,4185.1,0.024]
[1758679981771,19.57057008,4185.2,4185.1,0.024]
[1758679982150,19.34861109,4185.2,4185.1,0.024]
[1758679982331,20.42182827,4185.2,4185.1,0.024]
[1758679982535,19.57034693,4185.2,4185.1,0.024]
[1758679983435,20.84883315,4185.2,4185.1,0.024]
[1758679984062,20.84883315,4185.2,4184.1,0.02]
[1758679984063,0.792,4185.0,4184.1,0.02]
[1758679984266,10.38256644,4184.2,4184.1,0.02]
[1758679984439,17.33222556,4184.2,4184.1,0.02]
[1758679984640,11.3997191,4184.2,4184.1,0.02]
[1758679984937,13.78966221,4184.2,4184.1,0.02]
[1758679985213,15.23241899,4184.2,4184.1,0.02]
[1758679985494,16.08295981,4184.2,4184.1,0.02]
[1758679986516,15.23241899,4184.2,4184.1,0.02]
[1758679987396,9.14941899,4184.2,4184.1,0.02]
[1758679987558,15.23341899,4184.2,4184.1,0.02]
[1758679987758,10.77547588,4184.2,4184.1,0.02]
[1758679987943,15.23341899,4184.2,4184.1,0.02]
[1758679988142,9.14941899,4184.2,4184.1,0.02]
[1758679988363,15.23241899,4184.2,4184.1,0.02]
[1758679988692,15.23241899,4184.2,4183.1,0.4654]
[1758679988693,15.23241899,4184.2,4183.1,0.02]
[1758679988694,0.792,4183.5,4183.1,0.02]
[1758679988841,0.792,4183.2,4183.1,0.02]
[1758679989041,17.42173902,4183.2,4183.1,0.02]
[1758679989275,17.9334191,4183.2,4183.1,0.02]
[1758679989492,14.54089166,4183.2,4183.1,0.02]
[1758679989638,14.02921158,4183.2,4183.1,0.02]
[1758679989845,14.53847318,4183.2,4183.1,0.02]
[1758679990579,8.45347318,4183.2,4183.1,0.02]
[1758679990777,14.54147318,4183.2,4183.1,0.02]
[1758679991294,15.1774298,4183.2,4183.1,0.02]
[1758679991996,6.04061537,4183.2,4183.1,0.02]
[1758679992303,15.63065875,4183.2,4183.1,0.02]
[1758679992480,18.14435875,4183.2,4183.1,0.02]
[1758679992790,21.56017318,4183.2,4183.1,0.02]
[1758679998724,21.32687318,4183.2,4183.1,0.02]
[1758679998926,12.40465875,4183.2,4183.1,0.02]
[1758679999073,12.40465875,4183.2,4183.1,0.7014]
[1758679999074,14.70165875,4183.2,4183.1,0.7014]
[1758679999282,14.70063978,4183.2,4183.1,0.7014]
[1758679999474,17.70063978,4183.2,4183.1,0.2604]
[1758679999783,19.18383978,4183.2,4183.1,0.02]
[1758680000007,18.49263978,4183.2,4183.1,0.02]
[1758680000191,18.49263978,4183.2,4183.1,0.2604]
[1758680000512,18.49263978,4183.2,4183.1,0.02]
[1758680000808,20.88315421,4183.2,4183.1,0.02]
[1758680001014,18.49263978,4183.2,4183.1,0.02]
[1758680001472,18.49263978,4183.2,4183.1,0.7014]
[1758680001808,11.12973902,4183.2,4183.1,3.09197158]
[1758680002009,14.12973902,4183.2,4183.1,3.09197158]
[1758680002229,3.22225,4183.2,4183.1,15.2014]
[1758680002379,4.1432,4183.4,4183.3,2.39045729]
[1758680002582,0.001,4184.1,4183.3,0.2404]
[1758680002892,0.675,4184.0,4183.6,2.39023788]
[1758680003198,0.675,4184.0,4183.3,2.39041484]
[1758680003395,0.675,4184.0,4183.4,2.3903868]
[1758680003596,0.675,4184.0,4183.5,2.39031847]
[1758680003915,0.792,4183.9,4183.5,2.39031847]
[1758680004125,0.1192,4183.5,4183.4,2.39040015]
[1758680004413,0.792,4183.8,4183.7,2.39019462]
[1758680004712,4.823,4183.8,4183.7,2.39019462]
[1758680005176,0.1192,4183.7,4183.6,2.39028587]
[1758680005396,0.1192,4183.7,4183.6,2.41418872]
[1758680005601,0.1192,4183.7,4183.6,4.39292972]
[1758680005798,0.1192,4183.7,4183.6,4.60942687]
[1758680006102,0.1192,4183.7,4183.6,4.63332972]
[1758680006942,0.001,4184.1,4184.0,2.39005736]
[1758680007442,0.001,4184.1,4184.0,2.63045736]
[1758680007635,0.001,4184.1,4184.0,3.13251658]
[1758680008239,0.001,4184.1,4184.0,17.63251658]
[1758680010945,0.001,4184.1,4184.0,15.24245922]
[1758680011148,0.001,4184.1,4184.0,17.63251658]
[1758680011851,0.001,4184.1,4184.0,15.24245922]
[1758680012066,0.001,4184.1,4184.0,15.00205922]
[1758680012375,0.001,4184.1,4184.0,14.5]
[1758680012376,4.2509,4184.1,4184.0,14.5]
[1758680012518,4.4864,4184.1,4184.0,14.5]
[1758680012717,3.793,4184.1,4184.0,14.5]
[1758680012954,0.792,4184.0,4183.4,0.2404]
[1758680013157,0.792,4184.0,4183.1,0.024]
[1758680013158,3.792,4183.8,4183.1,0.024]
[1758680013390,2.39027054,4183.7,4183.1,0.024]
[1758680013677,1.2028838,4183.7,4183.1,0.024]
[1758680013849,0.792,4183.5,4183.1,0.024]
[1758680014051,3.792,4183.3,4183.1,0.024]
[1758680014296,1.14575138,4183.2,4183.1,0.024]
[1758680016950,1.14575138,4183.2,4183.1,14.524]
[1758680018172,2.86452652,4183.2,4183.1,0.024]
[1758680018355,6.37391401,4183.2,4183.1,0.024]
[1758680018557,6.37391401,4183.2,4182.2,14.5]
[1758680018558,3.0,4183.0,4182.2,14.5]
[1758680018749,3.792,4182.8,4182.2,14.5]
[1758680018955,0.792,4182.6,4182.2,14.5]
[1758680019155,3.792,4182.4,4182.2,14.5]
[1758680019364,0.22109452,4182.3,4182.2,14.5]
[1758680019875,0.22109452,4182.3,4182.1,0.02]
[1758680019876,0.792,4182.2,4182.1,0.02]
[1758680020057,8.87611395,4182.2,4182.1,0.02]
[1758680020644,8.18271395,4182.2,4182.1,0.02]
[1758680020851,12.88323092,4182.2,4182.1,0.02]
[1758680022446,12.88323092,4182.2,4182.1,0.024]
[1758680025752,13.52016362,4182.2,4182.1,0.024]
[1758680026061,12.88323092,4182.2,4182.1,0.024]
[1758680026979,12.88323092,4182.2,4181.1,0.02]
[1758680026980,3.18365789,4181.2,4181.1,0.02]
[1758680027181,13.15859252,4181.2,4181.1,0.02]
[1758680027482,13.87669252,4181.2,4181.1,0.02]
[1758680028185,11.48503463,4181.2,4181.1,0.02]
[1758680028344,10.25871395,4181.2,4181.1,0.02]
[1758680028549,3.35371395,4181.2,4181.1,0.02]
[1758680028799,8.05709452,4181.2,4181.1,0.2585]
[1758680028953,8.18936694,4181.2,4181.1,0.02]
[1758680029152,8.05709452,4181.2,4181.1,0.02]
[1758680030481,8.05809452,4181.2,4181.1,0.02]
[1758680030681,10.12809452,4181.2,4181.1,0.02]
[1758680031181,8.05709452,4181.2,4181.1,0.2585]
[1758680031387,10.12709452,4181.2,4181.1,0.2585]
[1758680032087,9.906,4181.2,4181.1,0.2585]
[1758680032278,3.792,4181.2,4181.1,0.2585]
[1758680032476,9.905,4181.2,4181.1,0.2585]
[1758680033332,9.905,4181.2,4181.1,0.02]
[1758680033333,3.0,4181.2,4181.1,0.02]
[1758680033488,7.043,4181.2,4181.1,0.02]
[1758680033692,7.835,4181.2,4181.1,0.02]
[1758680033903,9.297,4181.2,4181.1,0.02]
[1758680034086,9.5436,4181.2,4181.1,0.02]
[1758680034505,8.5531,4181.2,4181.1,0.02]
[1758680034706,8.77327125,4181.2,4181.1,0.02]
[1758680035032,8.90536806,4181.2,4181.1,0.02]
[1758680035593,10.13317125,4181.2,4181.1,0.02]
[1758680036734,4.01217125,4181.2,4181.1,0.02]
[1758680037200,9.913,4181.2,4181.1,0.2585]
[1758680037401,7.051,4181.2,4181.1,0.02]
[1758680037649,4.1732,4181.2,4181.1,0.2829]
[1758680037801,7.1732,4181.2,4181.1,0.2829]
[1758680037997,7.1732,4181.2,4181.1,2.67461509]
[1758680038239,7.1732,4181.2,4181.1,3.18125821]
[1758680038549,0.1192,4181.2,4181.1,3.18125821]
[1758680038754,0.36958863,4182.3,4181.1,0.78954312]
[1758680038755,0.35263955,4182.3,4181.1,0.78954312]
[1758680038902,0.1192,4181.6,4181.5,2.3914863]
[1758680039098,0.1192,4181.6,4181.5,2.67830116]
[1758680040315,0.1192,4181.6,4181.5,2.6299863]
[1758680040514,0.1192,4181.6,4181.1,0.0444]
[1758680040515,0.1192,4181.6,4181.2,0.2385]
[1758680040714,0.1192,4181.6,4181.5,2.3914863]
[1758680040964,0.1192,4181.6,4181.5,2.6299863]
[1758680041313,0.1192,4181.6,4181.5,0.2385]
[1758680041632,0.1192,4181.6,4181.1,2.41167085]
[1758680041633,0.1192,4181.6,4181.1,0.02]
[1758680041836,3.792,4181.5,4181.1,0.02]
[1758680042036,3.792,4181.3,4181.1,0.024]
[1758680042223,1.14543756,4181.2,4181.1,0.024]
[1758680042423,4.86353756,4181.2,4181.1,0.024]
[1758680042626,1.86353756,4181.2,4181.1,0.024]
[1758680042825,2.84299132,4181.2,4181.1,0.024]
[1758680043153,3.35246576,4181.2,4181.1,0.024]
[1758680043325,8.74412365,4181.2,4181.1,0.024]
[1758680045059,8.74435228,4181.2,4181.1,0.024]
[1758680046124,6.35269439,4181.2,4181.1,0.024]
[1758680047224,6.98679919,4181.2,4181.1,0.024]
[1758680048542,9.37845708,4181.2,4181.1,0.024]
[1758680048743,8.74462366,4181.2,4181.1,0.024]
[1758680048944,12.81162366,4181.2,4181.1,0.024]
[1758680049322,10.41996577,4181.2,4181.1,0.024]
[1758680054356,11.26738598,4181.2,4181.1,0.024]
[1758680055159,11.26856951,4181.2,4181.1,0.024]
[1758680055569,4.65659554,4181.2,4181.1,0.024]
[1758680055754,8.71959554,4181.2,4181.1,0.024]
[1758680055953,9.35886725,4181.2,4181.1,0.024]
[1758680056153,9.35886725,4181.2,4181.1,0.2669]
[1758680056686,8.71959554,4181.2,4181.1,0.024]
[1758680056850,9.90591712,4181.2,4181.1,0.024]
[1758680057363,10.54523497,4181.2,4181.1,0.024]
[1758680058580,9.90591712,4181.2,4181.1,0.024]
[1758680059301,9.55079602,4181.2,4181.1,0.024]
[1758680059591,9.90599053,4181.2,4181.1,0.024]
[1758680059957,10.37619053,4181.2,4181.1,0.024]
[1758680060359,10.60239053,4181.2,4181.1,0.024]
[1758680065599,10.37619053,4181.2,4181.1,0.024]
[1758680065974,10.60239053,4181.2,4181.1,0.024]
[1758680066181,11.24186108,4181.2,4181.1,0.024]
[1758680066393,10.60239053,4181.2,4181.1,0.024]
[1758680066696,11.24183135,4181.2,4181.1,0.024]
[1758680066902,10.60239053,4181.2,4181.1,0.024]
[1758680067103,11.24180593,4181.2,4181.1,0.024]
[1758680068299,10.60239053,4181.2,4181.1,0.024]
[1758680068782,11.24180593,4181.2,4181.1,0.024]
[1758680071666,10.60239053,4181.2,4181.1,0.024]
[1758680072804,10.60267122,4181.2,4181.1,0.024]
[1758680073806,12.99432911,4181.2,4181.1,0.024]
[1758680073989,13.84174932,4181.2,4181.1,0.024]
[1758680074189,12.99432911,4181.2,4181.1,0.024]
[1758680074501,14.27014034,4181.2,4181.1,0.024]
[1758680075704,12.99432911,4181.2,4181.1,0.024]
[1758680077419,12.99432911,4181.2,4180.1,0.02]
[1758680077420,0.792,4180.4,4180.1,0.02]
[1758680077726,6.46317903,4180.2,4180.1,0.02]
[1758680077873,12.67675299,4180.2,4180.1,0.02]
[1758680079112,12.03656076,4180.2,4180.1,0.02]
[1758680079322,12.67617646,4180.2,4180.1,0.02]
[1758680079621,7.00499743,4180.2,4180.1,0.02]
[1758680079826,13.11999743,4180.2,4180.1,0.2629]
[1758680080125,13.1197722,4180.2,4180.1,0.02]
[1758680080472,13.1187722,4180.2,4180.1,0.02]
[1758680081175,12.4791565,4180.2,4180.1,0.02]
[1758680081377,18.15033553,4180.2,4180.1,0.02]
[1758680081978,18.87133553,4180.2,4180.1,0.02]
[1758680083229,18.15033553,4180.2,4180.1,0.02]
[1758680083372,21.26356556,4180.2,4180.1,0.02]
[1758680083879,18.87133553,4180.2,4180.1,0.02]
[1758680084080,21.26356556,4180.2,4180.1,0.02]
[1758680085422,21.90318126,4180.2,4180.1,0.02]
[1758680085917,21.26356556,4180.2,4180.1,0.02]
[1758680086231,22.11490954,4180.2,4180.1,0.02]
[1758680086426,21.54483788,4180.2,4180.1,0.02]
[1758680086779,21.54483788,4180.2,4179.1,0.02]
[1758680086780,3.792,4179.4,4179.1,0.02]
[1758680087022,9.46317903,4179.2,4179.1,0.02]
[1758680087191,12.72070589,4179.2,4179.1,0.02]
[1758680087379,14.2929948,4179.2,4179.1,0.02]
[1758680087582,16.8079948,4179.2,4179.1,0.02]
[1758680087790,17.71295202,4179.2,4179.1,0.02]
[1758680088199,16.72840971,4179.2,4179.1,0.02]
[1758680088522,16.86121171,4179.2,4179.1,0.02]
[1758680088732,17.80474611,4179.2,4179.1,0.02]
[1758680090521,15.92633481,4179.2,4179.1,0.02]
[1758680092310,15.28974611,4179.2,4179.1,0.02]
[1758680092510,15.28840266,4179.2,4179.1,0.02]
[1758680093060,15.92499136,4179.2,4179.1,0.02]
[1758680094459,22.03799136,4179.2,4179.1,0.02]
[1758680095244,15.28840266,4179.2,4179.1,0.02]
[1758680095460,1.76788678,4179.2,4179.1,0.02]
[1758680095609,2.42445512,4179.2,4179.1,0.2694]
[1758680095827,6.46845512,4179.2,4179.1,0.2694]
[1758680096031,6.46845512,4179.2,4179.1,2.6622597]
[1758680096233,6.46845512,4179.2,4179.1,17.1622597]
[1758680096484,0.35345512,4179.2,4179.1,17.1622597]
[1758680096779,7.0,4179.4,4179.3,2.39274519]
[1758680096984,11.044,4179.4,4179.3,2.39274519]
[1758680097134,11.044,4179.4,4179.3,2.64214519]
[1758680097135,7.0,4179.4,4179.3,2.64214519]
[1758680100231,7.0,4179.4,4179.3,17.14214519]
[1758680101091,0.001,4180.2,4179.3,17.14214519]
[1758680101092,0.001,4180.2,4179.3,14.7494]
[1758680101262,0.001,4180.2,4179.4,4.13324078]
[1758680101263,0.1192,4179.5,4179.4,4.13324078]
[1758680101568,0.1192,4179.5,4179.4,4.38264078]
[1758680102886,2.093,4180.0,4179.9,2.39240173]
[1758680103047,0.001,4180.2,4180.1,2.39228726]
[1758680103048,3.655,4180.2,4180.1,2.39228726]
[1758680103247,0.001,4180.2,4180.1,17.14168726]
[1758680103448,0.001,4180.2,4180.1,18.86973656]
[1758680105176,0.001,4180.2,4180.1,18.98893656]
[1758680105346,0.001,4180.2,4180.1,23.03593656]
[1758680105547,0.001,4180.2,4180.1,18.86973656]
[1758680106482,1e-08,4180.7,4180.2,2.39223003]
[1758680106649,1e-08,4180.7,4180.3,5.77262597]
[1758680106971,1e-08,4180.7,4180.6,2.39200114]
[1758680107170,1e-08,4180.7,4180.6,16.89200114]
[1758680107479,1e-08,4180.7,4180.6,17.14140114]
[1758680108335,1e-08,4180.7,4180.6,16.89200114]
[1758680108734,1e-08,4180.7,4180.6,17.14140114]
[1758680108935,1e-08,4180.7,4180.6,19.50045281]
[1758680109476,1e-08,4180.7,4180.6,19.47605281]
[1758680110173,1e-08,4180.7,4180.6,19.50045281]
[1758680110842,1e-08,4180.7,4180.6,19.47605281]
[1758680111164,1e-08,4180.7,4180.6,19.25105281]
[1758680111768,1e-08,4180.7,4180.6,16.85905167]
[1758680112075,0.44890001,4180.7,4180.6,14.5]
[1758680112391,0.68340001,4180.7,4180.6,14.5]
[1758680112674,1e-08,4180.7,4180.6,16.89200114]
[1758680112851,1e-08,4180.7,4180.6,14.5]
[1758680113252,1e-08,4180.7,4180.6,16.89200114]
[1758680113768,1e-08,4180.7,4180.6,14.5]
[1758680114176,0.68730001,4180.7,4180.6,14.5]
[1758680114339,1e-08,4180.7,4180.6,16.89200114]
[1758680116449,0.11920001,4180.7,4180.6,16.45154122]
[1758680116653,0.11920001,4180.7,4180.6,14.5]
[1758680117173,0.80650001,4180.7,4180.6,14.5]
[1758680117380,0.57260001,4180.7,4180.6,14.5]
[1758680117677,0.57260001,4180.7,4179.6,2.39252527]
[1758680117678,3.0,4180.6,4179.6,2.39252527]
[1758680117864,3.0,4180.6,4179.3,0.2313]
[1758680117865,0.1192,4179.6,4179.3,3.216]
[1758680118068,0.1192,4179.6,4179.5,16.89263069]
[1758680118563,0.1192,4179.6,4179.5,14.5]
[1758680118564,0.5726,4179.6,4179.5,14.5]
[1758680119072,0.1192,4179.6,4179.5,16.89263069]
[1758680119445,3.0,4179.9,4179.8,2.39245896]
[1758680120951,0.02,4181.9,4180.5,2.39204848]
[1758680120952,2.07,4180.9,4180.5,2.39204848]
[1758680121158,3.0,4180.6,4180.5,2.39205836]
[1758680121352,4.06000001,4180.7,4180.6,2.39200114]
[1758680121578,4.06000001,4180.7,4180.6,16.89200114]
[1758680121768,7.06000001,4180.7,4180.6,16.89200114]
[1758680122196,1e-08,4180.7,4180.6,23.1348423]
[1758680122514,1e-08,4180.7,4180.6,23.1592423]
[1758680123872,1e-08,4180.7,4180.6,28.2292423]
[1758680124085,1e-08,4180.7,4180.6,28.2372423]
[1758680124613,1e-08,4180.7,4180.6,28.2412423]
[1758680125181,1e-08,4180.7,4180.6,19.0992423]
[1758680125389,1e-08,4180.7,4180.6,23.1712423]
[1758680127713,1e-08,4180.7,4180.6,23.1448423]
[1758680128231,1e-08,4180.7,4180.6,23.1692423]
[1758680128772,1e-08,4180.7,4180.6,23.1448423]
[1758680129792,1e-08,4180.7,4180.6,18.8435423]
[1758680129992,1e-08,4180.7,4180.6,16.89200114]
[1758680130221,1e-08,4180.7,4180.6,17.12330114]
[1758680132309,1e-08,4180.7,4180.6,21.31050114]
[1758680133816,1e-08,4180.7,4180.6,21.07820114]
[1758680134026,1e-08,4180.7,4180.6,20.95900114]
[1758680134336,1e-08,4180.7,4180.6,23.3060323]
[1758680134536,1e-08,4180.7,4180.6,19.2390323]
[1758680134895,0.68730001,4180.7,4180.6,20.95800114]
[1758680135227,0.68730001,4180.7,4180.6,14.5]
[1758680135228,1.04225073,4180.7,4180.6,14.5]
[1758680135396,1.04225073,4180.7,4180.6,16.89200114]
[1758680136425,0.68730001,4180.7,4180.6,16.89200114]
[1758680136627,1.04224838,4180.7,4180.6,16.89200114]
[1758680137899,1.83424838,4180.7,4179.3,0.004]
[1758680138093,0.63658353,4180.5,4179.6,2.39256707]
[1758680138339,0.792,4180.3,4179.7,2.41642465]
[1758680138496,0.792,4180.3,4179.8,14.5]
[1758680138497,0.792,4180.1,4179.8,14.5]
[1758680138835,0.792,4179.9,4179.3,0.004]
[1758680139043,0.35494837,4179.8,4179.3,0.004]
[1758680139328,0.35494837,4179.7,4179.4,2.39268304]
[1758680139536,0.35494837,4179.6,4179.5,2.39263069]
[1758680139736,0.90914273,4179.6,4179.4,2.39268077]
[1758680139921,1.04224837,4179.5,4179.4,2.39268077]
[1758680140116,0.90914273,4179.5,4179.4,2.39268077]
[1758680140426,0.6873,4179.5,4179.4,2.39268077]
[1758680142621,0.6873,4179.5,4179.4,2.39268794]
[1758680144753,0.6873,4179.5,4179.3,0.004]
[1758680144754,0.792,4179.4,4179.3,0.004]
[1758680144925,1.29425024,4179.4,4179.3,0.004]
[1758680145254,1.99355024,4179.4,4179.3,0.004]
[1758680151266,1.99300325,4179.4,4179.3,0.004]
[1758680152264,1.77203888,4179.4,4179.3,0.004]
[1758680152449,1.99295489,4179.4,4179.3,0.004]
[1758680153232,0.1192,4179.3,4178.1,0.02]
[1758680153475,21.46282924,4178.2,4178.1,0.02]
[1758680153766,28.65285413,4178.2,4178.1,0.02]
[1758680153973,31.04622926,4178.2,4178.1,0.02]
[1758680154156,31.04622926,4178.2,4176.8,2.3941321]
[1758680154358,31.04622926,4178.2,4176.2,0.2282]
[1758680154359,0.792,4177.8,4176.2,0.2282]
[1758680154525,3.792,4177.6,4176.5,2.39430277]
[1758680154727,4.87712489,4177.7,4176.6,14.5]
[1758680154728,3.792,4177.4,4176.6,14.5]
[1758680154938,2.42472489,4177.3,4176.6,14.5]
[1758680155172,4.066,4177.2,4176.6,14.5]
[1758680155471,7.066,4177.2,4176.6,14.5]
[1758680155672,8.96042673,4177.2,4176.6,14.5]
[1758680156167,8.82813,4177.2,4176.6,16.89428793]
[1758680156467,8.82813,4177.2,4176.8,2.39416119]
[1758680156931,8.82813,4177.2,4176.7,2.39423279]
[1758680157238,8.82813,4177.2,4176.6,14.5]
[1758680157443,8.82813,4177.2,4176.6,16.89424259]
[1758680157671,8.82813,4177.2,4176.6,14.5]
[1758680157847,9.62013,4177.2,4176.6,14.5]
[1758680158042,9.62013,4177.2,4176.1,0.02]
[1758680158272,27.6431803,4177.2,4176.1,0.02]
[1758680158470,27.6431803,4177.2,4176.2,14.5]
[1758680158642,30.03712839,4177.2,4177.1,0.024]
[1758680161057,2.39413639,4176.9,4176.1,0.02]
[1758680161235,8.8288347,4176.8,4176.1,0.02]
[1758680161437,0.792,4176.6,4176.1,0.02]
[1758680161634,0.792,4176.4,4176.1,14.52]
[1758680161944,3.0,4176.2,4176.1,14.52]
[1758680162148,3.2348,4176.2,4176.1,14.52]
[1758680163874,0.2348,4176.2,4176.1,14.52]
[1758680164976,1.0268,4176.2,4176.1,16.91457867]
[1758680165139,1.0268,4176.2,4176.1,14.52]
[1758680166749,1.0268,4176.2,4176.1,0.02]
[1758680167187,1.24696485,4176.2,4176.1,0.02]
[1758680167392,4.71146485,4176.2,4176.1,0.02]
[1758680167578,5.49631134,4176.2,4176.1,0.02]
[1758680168113,5.62838662,4176.2,4176.1,0.02]
[1758680168313,5.62838662,4176.2,4175.1,0.02]
[1758680168314,0.792,4175.9,4175.1,0.02]
[1758680168622,3.0,4176.0,4175.1,0.02]
[1758680168623,3.792,4175.7,4175.1,0.02]
[1758680168792,3.792,4175.5,4175.1,0.02]
[1758680169113,3.792,4175.3,4175.1,0.02]
[1758680169314,8.07916485,4175.2,4175.1,0.02]
[1758680169478,8.31396485,4175.2,4175.1,0.02]
[1758680169681,8.77846485,4175.2,4175.1,0.02]
[1758680169905,9.65631134,4175.2,4175.1,0.02]
[1758680170288,10.16304042,4175.2,4175.1,0.02]
[1758680170616,9.65631134,4175.2,4175.1,0.02]
[1758680171182,10.16301959,4175.2,4175.1,0.02]
[1758680173119,10.29495636,4175.2,4175.1,0.02]
[1758680173618,12.6900512,4175.2,4175.1,0.02]
[1758680174209,10.9287435,4175.2,4175.1,0.02]
[1758680174933,10.29495636,4175.2,4175.1,0.02]
[1758680175224,10.9287435,4175.2,4175.1,0.02]
[1758680175741,13.32383834,4175.2,4175.1,0.02]
[1758680175909,10.9287435,4175.2,4175.1,0.02]
[1758680178019,10.9287435,4175.2,4175.1,0.024]
[1758680178217,10.29495636,4175.2,4175.1,0.024]
[1758680179242,11.14624527,4175.2,4175.1,0.024]
[1758680180296,10.29495636,4175.2,4175.1,0.024]
[1758680180728,10.29526949,4175.2,4175.1,0.024]
[1758680181033,10.29526949,4175.2,4174.1,0.246]
[1758680181034,10.29526949,4175.2,4174.1,0.02]
[1758680181035,0.792,4175.0,4174.1,0.02]
[1758680181231,1.42680854,4174.4,4174.1,0.02]
[1758680181447,1.42680854,4174.4,4173.5,2.39605956]
[1758680181448,0.84641138,4174.6,4173.1,0.02]
[1758680181449,0.792,4174.0,4173.1,0.02]
[1758680181735,1.42717804,4173.3,4173.1,0.02]
[1758680181920,7.790123,4173.2,4173.1,0.02]
[1758680182327,8.42530104,4173.2,4173.1,0.02]
[1758680182504,11.42530104,4173.2,4173.1,0.02]
[1758680182699,10.790123,4173.2,4173.1,0.02]
[1758680182899,11.9538257,4173.2,4173.1,0.02]
[1758680183304,12.80072975,4173.2,4173.1,0.02]
[1758680183707,11.63702705,4173.2,4173.1,0.02]
[1758680184107,11.63702705,4173.2,4173.1,2.41630011]
[1758680184446,11.63702705,4173.2,4173.1,0.02]
[1758680184816,11.63702705,4173.2,4173.1,2.41630011]
[1758680185116,10.790123,4173.2,4173.1,3.09040011]
[1758680185444,10.790123,4173.2,4173.1,2.64230011]
[1758680185736,11.42577611,4173.2,4173.1,2.64230011]
[1758680186522,11.42577611,4173.2,4173.1,0.02]
[1758680186742,10.790123,4173.2,4173.1,0.02]
[1758680186943,10.790123,4173.2,4173.1,2.41630011]
[1758680188208,0.7268731,4173.2,4173.1,3.19098156]
[1758680188406,0.7268731,4173.2,4173.1,3.63908156]
[1758680188608,0.22016485,4173.2,4173.1,3.63908156]